[Event "Early-Titled-Tuesday-Blitz-April-23-2024"]
[Site "Chess.com"]
[Date "2024.04.23"]
[Round "6"]
[White "Masterbeaterr"]
[Black "RianKapriaga"]
[Result "0-1"]
[WhiteElo "2467"]
[BlackElo "2318"]
[TimeControl "180+1"]
[EndTime "9:06:20 PDT"]
[Termination "RianKapriaga won by resignation"]

1. d4 {[%clk 0:03:00.9]} 1... Nf6 {[%clk 0:02:59.8]} 2. c4 {[%clk 0:03:01.1]}
2... e6 {[%clk 0:03:00.3]} 3. Nc3 {[%clk 0:03:01]} 3... d5 {[%clk 0:03:00.9]} 4.
Nf3 {[%clk 0:02:59.9]} 4... Be7 {[%clk 0:03:01]} 5. e3 {[%clk 0:02:57.3]} 5...
O-O {[%clk 0:03:00]} 6. Bd3 {[%clk 0:02:56.5]} 6... a6 {[%clk 0:02:59.5]} 7.
cxd5 {[%clk 0:02:53.8]} 7... exd5 {[%clk 0:02:58.8]} 8. O-O {[%clk 0:02:53.9]}
8... Nbd7 {[%clk 0:02:56.6]} 9. b3 {[%clk 0:02:49.9]} 9... Re8 {[%clk
0:02:55.8]} 10. Bb2 {[%clk 0:02:50.1]} 10... c6 {[%clk 0:02:55.7]} 11. Qc1
{[%clk 0:02:49.1]} 11... Nf8 {[%clk 0:02:54.5]} 12. Ba3 {[%clk 0:02:47.8]} 12...
Ng6 {[%clk 0:02:53.4]} 13. Bxe7 {[%clk 0:02:47.2]} 13... Qxe7 {[%clk 0:02:53.1]}
14. Bxg6 {[%clk 0:02:44]} 14... hxg6 {[%clk 0:02:52.5]} 15. Ne5 {[%clk
0:02:44.9]} 15... Ng4 {[%clk 0:02:40.8]} 16. Nxg4 {[%clk 0:02:44.9]} 16... Bxg4
{[%clk 0:02:41.7]} 17. Na4 {[%clk 0:02:44.5]} 17... Qg5 {[%clk 0:02:35]} 18. Kh1
{[%clk 0:02:40.8]} 18... Re7 {[%clk 0:02:16.7]} 19. Nc5 {[%clk 0:02:40.7]} 19...
Rae8 {[%clk 0:02:16.4]} 20. a4 {[%clk 0:02:38.7]} 20... Qh4 {[%clk 0:02:12.5]}
21. a5 {[%clk 0:02:35.7]} 21... g5 {[%clk 0:02:07.8]} 22. Nd3 {[%clk 0:02:22.1]}
22... f6 {[%clk 0:02:05.5]} 23. Ra2 {[%clk 0:02:14]} 23... Kf7 {[%clk 0:02:03]}
24. f3 {[%clk 0:02:08.7]} 24... Bf5 {[%clk 0:02:00.6]} 25. g3 {[%clk 0:01:58.3]}
25... Qh7 {[%clk 0:01:45.5]} 26. Nc5 {[%clk 0:01:58]} 26... Rxe3 {[%clk
0:01:40.2]} 27. Nxb7 {[%clk 0:01:58.3]} 27... Re2 {[%clk 0:01:40.4]} 28. Nd6+
{[%clk 0:01:51.3]} 28... Kg6 {[%clk 0:01:38.8]} 29. Rxe2 {[%clk 0:01:43.2]}
29... Rxe2 {[%clk 0:01:37.8]} 30. h4 {[%clk 0:01:43.8]} 30... gxh4 {[%clk
0:01:22.3]} 31. g4 {[%clk 0:01:44]} 31... Bc2 {[%clk 0:01:21.8]} 32. Qf4 {[%clk
0:01:42]} 32... Qh6 {[%clk 0:01:14.8]} 33. Qxh6+ {[%clk 0:01:33.4]} 33... Kxh6
{[%clk 0:01:13.1]} 34. b4 {[%clk 0:01:29.6]} 34... Kg5 {[%clk 0:01:10.7]} 35.
Ne8 {[%clk 0:01:25.6]} 35... Rxe8 {[%clk 0:01:02.1]} 0-1

[Event "Early-Titled-Tuesday-Blitz-April-23-2024"]
[Site "Chess.com"]
[Date "2024.04.23"]
[Round "6"]
[White "kecalk"]
[Black "Arteler"]
[Result "1-0"]
[WhiteElo "2524"]
[BlackElo "2344"]
[TimeControl "180+1"]
[EndTime "9:06:29 PDT"]
[Termination "kecalk won by checkmate"]

1. e4 {[%clk 0:03:00.9]} 1... e5 {[%clk 0:03:00.1]} 2. f4 {[%clk 0:03:00.8]}
2... d6 {[%clk 0:03:00]} 3. Nf3 {[%clk 0:03:00.7]} 3... Nf6 {[%clk 0:03:00.1]}
4. Nc3 {[%clk 0:02:55.4]} 4... Nc6 {[%clk 0:02:47.6]} 5. Bc4 {[%clk 0:02:44.5]}
5... Be7 {[%clk 0:02:46.7]} 6. O-O {[%clk 0:02:44.4]} 6... O-O {[%clk
0:02:46.3]} 7. d3 {[%clk 0:02:39.3]} 7... exf4 {[%clk 0:02:17.5]} 8. Bxf4 {[%clk
0:02:39]} 8... Be6 {[%clk 0:02:18.1]} 9. Bb3 {[%clk 0:02:30.4]} 9... d5 {[%clk
0:01:09.1]} 10. exd5 {[%clk 0:02:25.6]} 10... Nxd5 {[%clk 0:01:10]} 11. Nxd5
{[%clk 0:02:26]} 11... Bxd5 {[%clk 0:01:10.1]} 12. Bxd5 {[%clk 0:02:16.8]} 12...
Qxd5 {[%clk 0:01:11]} 13. Bxc7 {[%clk 0:02:17.5]} 13... Bc5+ {[%clk 0:01:06.1]}
14. Kh1 {[%clk 0:02:16]} 14... Rae8 {[%clk 0:01:01.1]} 15. Bg3 {[%clk
0:02:12.7]} 15... Nd4 {[%clk 0:00:56.1]} 16. Nxd4 {[%clk 0:02:09.1]} 16... Qxd4
{[%clk 0:00:50]} 17. c3 {[%clk 0:02:07.7]} 17... Qd5 {[%clk 0:00:50.6]} 18. d4
{[%clk 0:02:07.4]} 18... Bd6 {[%clk 0:00:26.1]} 19. Bxd6 {[%clk 0:02:05.4]}
19... Qxd6 {[%clk 0:00:27]} 20. Qf3 {[%clk 0:01:46]} 20... Qb6 {[%clk
0:00:15.8]} 21. Qf2 {[%clk 0:01:46.1]} 21... Re7 {[%clk 0:00:14.9]} 22. Rae1
{[%clk 0:01:44.7]} 22... Rfe8 {[%clk 0:00:14.5]} 23. Qxf7+ {[%clk 0:01:44.6]}
23... Kh8 {[%clk 0:00:05.5]} 24. Qf8+ {[%clk 0:01:40.9]} 24... Rxf8 {[%clk
0:00:04.8]} 25. Rxf8# {[%clk 0:01:41.8]} 1-0

[Event "Early-Titled-Tuesday-Blitz-April-23-2024"]
[Site "Chess.com"]
[Date "2024.04.23"]
[Round "6"]
[White "CSB7"]
[Black "bescmelasti"]
[Result "1-0"]
[WhiteElo "2804"]
[BlackElo "2599"]
[TimeControl "180+1"]
[EndTime "9:06:32 PDT"]
[Termination "CSB7 won by resignation"]

1. e4 {[%clk 0:02:55.2]} 1... c5 {[%clk 0:03:00]} 2. Nf3 {[%clk 0:02:54.9]} 2...
e6 {[%clk 0:03:00.7]} 3. Nc3 {[%clk 0:02:51.2]} 3... Nc6 {[%clk 0:02:59.4]} 4.
d4 {[%clk 0:02:50.4]} 4... cxd4 {[%clk 0:02:59.2]} 5. Nxd4 {[%clk 0:02:51.3]}
5... Nf6 {[%clk 0:02:59.9]} 6. Be2 {[%clk 0:02:45.7]} 6... Bb4 {[%clk
0:02:58.2]} 7. O-O {[%clk 0:02:39.6]} 7... Bxc3 {[%clk 0:02:58.4]} 8. bxc3
{[%clk 0:02:40.5]} 8... Nxe4 {[%clk 0:02:59.2]} 9. Nxc6 {[%clk 0:02:39.8]} 9...
dxc6 {[%clk 0:02:59.9]} 10. Bd3 {[%clk 0:02:33]} 10... Nc5 {[%clk 0:02:56.2]}
11. Qg4 {[%clk 0:02:04.5]} 11... Qf6 {[%clk 0:02:55.4]} 12. Bg5 {[%clk
0:01:53.9]} 12... Qxc3 {[%clk 0:02:54.3]} 13. Rad1 {[%clk 0:01:42.6]} 13... O-O
{[%clk 0:02:49.9]} 14. Qg3 {[%clk 0:01:18.2]} 14... Kh8 {[%clk 0:02:16.9]} 15.
h4 {[%clk 0:00:34.8]} 15... f6 {[%clk 0:02:00.3]} 16. Bd2 {[%clk 0:00:33.6]}
16... Qb2 {[%clk 0:01:47.2]} 17. h5 {[%clk 0:00:32.3]} 17... Nxd3 {[%clk
0:01:42.4]} 18. h6 {[%clk 0:00:31.9]} 18... g5 {[%clk 0:01:38.3]} 19. Qxd3
{[%clk 0:00:27.7]} 19... e5 {[%clk 0:01:34.3]} 20. Qd6 {[%clk 0:00:23.1]} 20...
Bf5 {[%clk 0:01:30.1]} 21. Qe7 {[%clk 0:00:19]} 1-0

[Event "Early-Titled-Tuesday-Blitz-April-23-2024"]
[Site "Chess.com"]
[Date "2024.04.23"]
[Round "6"]
[White "Evan_Attaker"]
[Black "yonaltimur"]
[Result "1-0"]
[WhiteElo "2581"]
[BlackElo "2407"]
[TimeControl "180+1"]
[EndTime "9:06:34 PDT"]
[Termination "Evan_Attaker won by resignation"]

1. a3 {[%clk 0:02:59.6]} 1... d5 {[%clk 0:02:59.3]} 2. c4 {[%clk 0:02:58.1]}
2... c6 {[%clk 0:02:56.1]} 3. e3 {[%clk 0:02:56.4]} 3... Nf6 {[%clk 0:02:55.4]}
4. b3 {[%clk 0:02:56.4]} 4... g6 {[%clk 0:02:54.5]} 5. Bb2 {[%clk 0:02:55.7]}
5... Bg7 {[%clk 0:02:54.1]} 6. Nf3 {[%clk 0:02:56.4]} 6... O-O {[%clk
0:02:53.2]} 7. Be2 {[%clk 0:02:55.7]} 7... Nbd7 {[%clk 0:02:41.8]} 8. O-O {[%clk
0:02:52.7]} 8... Re8 {[%clk 0:02:39.9]} 9. d3 {[%clk 0:02:52.8]} 9... e5 {[%clk
0:02:40.1]} 10. Nbd2 {[%clk 0:02:45.6]} 10... Qe7 {[%clk 0:02:35.1]} 11. Qc2
{[%clk 0:02:43.9]} 11... e4 {[%clk 0:02:04.4]} 12. dxe4 {[%clk 0:02:43.5]} 12...
dxe4 {[%clk 0:01:54.2]} 13. Nd4 {[%clk 0:02:41.8]} 13... a5 {[%clk 0:01:30.8]}
14. Rac1 {[%clk 0:02:35.2]} 14... Nb6 {[%clk 0:01:27.5]} 15. c5 {[%clk
0:02:33.7]} 15... Nbd5 {[%clk 0:01:16.7]} 16. Rfd1 {[%clk 0:02:29.7]} 16... Bd7
{[%clk 0:00:22.7]} 17. Nf1 {[%clk 0:02:26.9]} 17... Rad8 {[%clk 0:00:22.7]} 18.
Qd2 {[%clk 0:02:22.2]} 18... Bc8 {[%clk 0:00:12.4]} 19. Qxa5 {[%clk 0:02:21.3]}
19... Nd7 {[%clk 0:00:09.4]} 20. Ng3 {[%clk 0:01:54.8]} 20... f5 {[%clk
0:00:09.5]} 21. Ndxf5 {[%clk 0:01:54.4]} 21... gxf5 {[%clk 0:00:06.8]} 22. Nxf5
{[%clk 0:01:55.3]} 22... Qf7 {[%clk 0:00:07.2]} 23. Nxg7 {[%clk 0:01:54.3]}
23... Re5 {[%clk 0:00:06.6]} 24. Bxe5 {[%clk 0:01:48.9]} 24... Nxe5 {[%clk
0:00:07.5]} 25. Qxd8+ {[%clk 0:01:43.8]} 1-0

[Event "Early-Titled-Tuesday-Blitz-April-23-2024"]
[Site "Chess.com"]
[Date "2024.04.23"]
[Round "6"]
[White "Eliwood44"]
[Black "LaPiToB"]
[Result "0-1"]
[WhiteElo "2462"]
[BlackElo "2309"]
[TimeControl "180+1"]
[EndTime "9:06:34 PDT"]
[Termination "LaPiToB won by checkmate"]

1. d4 {[%clk 0:02:57.7]} 1... Nf6 {[%clk 0:02:59.2]} 2. c4 {[%clk 0:02:56.2]}
2... e6 {[%clk 0:02:58.7]} 3. Nc3 {[%clk 0:02:56.2]} 3... d5 {[%clk 0:02:56.9]}
4. cxd5 {[%clk 0:02:55.4]} 4... exd5 {[%clk 0:02:55.6]} 5. Bg5 {[%clk
0:02:55.5]} 5... c6 {[%clk 0:02:53]} 6. e3 {[%clk 0:02:54.5]} 6... Nbd7 {[%clk
0:02:49.7]} 7. Bd3 {[%clk 0:02:47.9]} 7... Be7 {[%clk 0:02:49.5]} 8. Nge2 {[%clk
0:02:47.8]} 8... O-O {[%clk 0:02:49.4]} 9. O-O {[%clk 0:02:47.9]} 9... Re8
{[%clk 0:02:49.5]} 10. Qc2 {[%clk 0:02:48.1]} 10... Nf8 {[%clk 0:02:49.3]} 11.
Rae1 {[%clk 0:02:46.1]} 11... h6 {[%clk 0:02:47.6]} 12. Bf4 {[%clk 0:02:42]}
12... Ne6 {[%clk 0:02:42.1]} 13. Bg3 {[%clk 0:02:42]} 13... Nh5 {[%clk
0:02:41.3]} 14. f3 {[%clk 0:02:39.6]} 14... Nxg3 {[%clk 0:02:40.8]} 15. Nxg3
{[%clk 0:02:40.5]} 15... Bh4 {[%clk 0:02:29.7]} 16. Kh1 {[%clk 0:02:36.5]} 16...
Bxg3 {[%clk 0:02:28.4]} 17. hxg3 {[%clk 0:02:36.4]} 17... Qg5 {[%clk 0:02:27.8]}
18. Qf2 {[%clk 0:02:34.2]} 18... Nf8 {[%clk 0:02:07.4]} 19. g4 {[%clk
0:02:31.6]} 19... Bd7 {[%clk 0:02:02.8]} 20. Ne2 {[%clk 0:02:29.4]} 20... Qxe3
{[%clk 0:02:00.4]} 21. Bb1 {[%clk 0:02:26.6]} 21... Qxf2 {[%clk 0:01:59.2]} 22.
Rxf2 {[%clk 0:02:26.5]} 22... Re7 {[%clk 0:01:57]} 23. Ref1 {[%clk 0:02:26.6]}
23... Rae8 {[%clk 0:01:56.6]} 24. Ng3 {[%clk 0:02:27.2]} 24... Ng6 {[%clk
0:01:54.3]} 25. b4 {[%clk 0:02:17.2]} 25... Re1 {[%clk 0:01:53]} 26. Bxg6 {[%clk
0:02:16.3]} 26... fxg6 {[%clk 0:01:52.7]} 27. Kh2 {[%clk 0:02:16.5]} 27... Rxf1
{[%clk 0:01:42.7]} 28. Nxf1 {[%clk 0:02:17.4]} 28... Re1 {[%clk 0:01:36.6]} 29.
Ng3 {[%clk 0:02:12.5]} 29... Rd1 {[%clk 0:01:30.2]} 30. Ne2 {[%clk 0:02:07.4]}
30... Rd2 {[%clk 0:01:29.2]} 31. a4 {[%clk 0:02:05.8]} 31... g5 {[%clk
0:01:23.7]} 32. Kg3 {[%clk 0:02:04.4]} 32... Be8 {[%clk 0:01:22.2]} 33. Nc3
{[%clk 0:02:01]} 33... Rxd4 {[%clk 0:01:21.3]} 34. b5 {[%clk 0:02:00]} 34... Rc4
{[%clk 0:01:18.4]} 35. Nd1 {[%clk 0:01:55.2]} 35... cxb5 {[%clk 0:01:18.3]} 36.
axb5 {[%clk 0:01:56]} 36... Bxb5 {[%clk 0:01:17.7]} 37. Ne3 {[%clk 0:01:56.5]}
37... Rc5 {[%clk 0:01:17.9]} 38. Rd2 {[%clk 0:01:55.9]} 38... Bc6 {[%clk
0:01:17.9]} 39. Nf5 {[%clk 0:01:55.7]} 39... a5 {[%clk 0:01:16.2]} 40. Re2
{[%clk 0:01:54.8]} 40... g6 {[%clk 0:01:11.7]} 41. Ne7+ {[%clk 0:01:52.4]} 41...
Kf7 {[%clk 0:01:10.6]} 42. Nc8 {[%clk 0:01:52.7]} 42... a4 {[%clk 0:01:07.7]}
43. Nd6+ {[%clk 0:01:52.9]} 43... Kf6 {[%clk 0:01:05.2]} 44. f4 {[%clk
0:01:53.2]} 44... gxf4+ {[%clk 0:01:04.6]} 45. Kxf4 {[%clk 0:01:54.1]} 45... g5+
{[%clk 0:01:04.2]} 46. Kg3 {[%clk 0:01:54]} 46... Rc3+ {[%clk 0:01:04.4]} 47.
Kf2 {[%clk 0:01:53.6]} 47... a3 {[%clk 0:01:04.1]} 48. Nf5 {[%clk 0:01:53.4]}
48... Rb3 {[%clk 0:01:02.3]} 49. Kg1 {[%clk 0:01:49.2]} 49... Rb2 {[%clk
0:01:01.6]} 50. Re3 {[%clk 0:01:49.6]} 50... a2 {[%clk 0:01:01.3]} 51. Ra3
{[%clk 0:01:50.2]} 51... Rb1+ {[%clk 0:01:00.8]} 52. Kh2 {[%clk 0:01:50.6]}
52... a1=Q {[%clk 0:01:01.5]} 53. Rxa1 {[%clk 0:01:50.9]} 53... Rxa1 {[%clk
0:01:02]} 54. Nxh6 {[%clk 0:01:51.8]} 54... Ra2 {[%clk 0:01:01.2]} 55. Kh3
{[%clk 0:01:52.1]} 55... d4 {[%clk 0:01:01.5]} 56. g3 {[%clk 0:01:52.7]} 56...
Ra1 {[%clk 0:00:58.2]} 57. Nf5 {[%clk 0:01:51.6]} 57... Rh1# {[%clk 0:00:57.2]}
0-1

[Event "Early-Titled-Tuesday-Blitz-April-23-2024"]
[Site "Chess.com"]
[Date "2024.04.23"]
[Round "6"]
[White "mortngabriel"]
[Black "Bogdan_Bodnar"]
[Result "1-0"]
[WhiteElo "2457"]
[BlackElo "2229"]
[TimeControl "180+1"]
[EndTime "9:06:35 PDT"]
[Termination "mortngabriel won by resignation"]

1. e4 {[%clk 0:03:00.9]} 1... c6 {[%clk 0:02:59.7]} 2. Nc3 {[%clk 0:02:59.2]}
2... d5 {[%clk 0:02:59.7]} 3. Nf3 {[%clk 0:03:00.1]} 3... dxe4 {[%clk
0:02:59.8]} 4. Nxe4 {[%clk 0:03:01]} 4... Nf6 {[%clk 0:03:00.5]} 5. Qe2 {[%clk
0:03:01.2]} 5... Bf5 {[%clk 0:03:00.5]} 6. Nxf6+ {[%clk 0:03:00.8]} 6... gxf6
{[%clk 0:03:01.4]} 7. d3 {[%clk 0:03:01]} 7... Nd7 {[%clk 0:03:00.3]} 8. g3
{[%clk 0:03:01.4]} 8... h5 {[%clk 0:02:46.9]} 9. Bg2 {[%clk 0:02:43.6]} 9... Bg4
{[%clk 0:02:44]} 10. h3 {[%clk 0:02:41.9]} 10... Be6 {[%clk 0:02:23.9]} 11. O-O
{[%clk 0:02:24.9]} 11... Nb6 {[%clk 0:02:19.3]} 12. Re1 {[%clk 0:02:20.8]} 12...
Qd7 {[%clk 0:02:19.3]} 13. Kh2 {[%clk 0:02:19.6]} 13... O-O-O {[%clk 0:02:12.7]}
14. a4 {[%clk 0:02:15.3]} 14... f5 {[%clk 0:01:33.4]} 15. a5 {[%clk 0:01:59.9]}
15... Nd5 {[%clk 0:01:33]} 16. a6 {[%clk 0:02:00.8]} 16... b6 {[%clk 0:01:32.3]}
17. Ng5 {[%clk 0:01:48.9]} 17... Nc7 {[%clk 0:01:11.5]} 18. Bf4 {[%clk
0:01:35.7]} 18... Bd5 {[%clk 0:00:40.2]} 19. Bxc7 {[%clk 0:01:28.2]} 19... Kxc7
{[%clk 0:00:36.2]} 20. Qe5+ {[%clk 0:01:25.3]} 20... Qd6 {[%clk 0:00:30.3]} 21.
Qxh8 {[%clk 0:01:21.7]} 21... Bxg2 {[%clk 0:00:24.7]} 22. Kxg2 {[%clk
0:01:13.1]} 22... f4 {[%clk 0:00:25.2]} 23. Qe5 {[%clk 0:01:11.3]} 1-0

[Event "Early-Titled-Tuesday-Blitz-April-23-2024"]
[Site "Chess.com"]
[Date "2024.04.23"]
[Round "6"]
[White "shimastream"]
[Black "grzechu96"]
[Result "1-0"]
[WhiteElo "3049"]
[BlackElo "2790"]
[TimeControl "180+1"]
[EndTime "9:06:38 PDT"]
[Termination "shimastream won by resignation"]

1. e4 {[%clk 0:03:00.9]} 1... e5 {[%clk 0:02:59.1]} 2. Nf3 {[%clk 0:03:01]} 2...
Nc6 {[%clk 0:02:59.6]} 3. Nc3 {[%clk 0:03:00.8]} 3... Nf6 {[%clk 0:02:59.1]} 4.
h3 {[%clk 0:03:01.4]} 4... d5 {[%clk 0:02:54.4]} 5. exd5 {[%clk 0:03:02.3]} 5...
Nxd5 {[%clk 0:02:55.3]} 6. Bb5 {[%clk 0:03:01.7]} 6... Nxc3 {[%clk 0:02:55.8]}
7. bxc3 {[%clk 0:03:02.3]} 7... Bd6 {[%clk 0:02:56.3]} 8. O-O {[%clk 0:03:02.9]}
8... O-O {[%clk 0:02:56.2]} 9. Re1 {[%clk 0:03:03.6]} 9... Qf6 {[%clk
0:02:51.1]} 10. d4 {[%clk 0:03:03.6]} 10... exd4 {[%clk 0:02:50.9]} 11. cxd4
{[%clk 0:03:03.7]} 11... h6 {[%clk 0:02:51]} 12. Rb1 {[%clk 0:03:02.1]} 12...
Bf5 {[%clk 0:02:36.3]} 13. Bf1 {[%clk 0:03:01.4]} 13... b6 {[%clk 0:02:35]} 14.
Bb2 {[%clk 0:03:00.3]} 14... Nb4 {[%clk 0:02:25.3]} 15. d5 {[%clk 0:03:00.4]}
15... Bxc2 {[%clk 0:01:46]} 16. Qd2 {[%clk 0:02:59.8]} 16... Qg6 {[%clk
0:01:25.3]} 17. Rbc1 {[%clk 0:02:57.8]} 17... Bd3 {[%clk 0:00:50.3]} 18. Ne5
{[%clk 0:02:56.1]} 18... Bxe5 {[%clk 0:00:46.3]} 19. Bxe5 {[%clk 0:02:57]} 19...
Bxf1 {[%clk 0:00:46.4]} 20. Rxf1 {[%clk 0:02:57.9]} 20... Nd3 {[%clk 0:00:46.2]}
21. Bxg7 {[%clk 0:02:57.8]} 21... Kxg7 {[%clk 0:00:43.8]} 22. Rc3 {[%clk
0:02:57.3]} 22... Rad8 {[%clk 0:00:07.9]} 23. Rxd3 {[%clk 0:02:57.2]} 23... Kh7
{[%clk 0:00:06.7]} 24. Rg3 {[%clk 0:02:46.5]} 24... Qf6 {[%clk 0:00:04.1]} 25.
Qc2+ {[%clk 0:02:43.3]} 25... Kh8 {[%clk 0:00:03.8]} 26. Rd1 {[%clk 0:02:42.7]}
26... Rd7 {[%clk 0:00:03.7]} 27. Rdd3 {[%clk 0:02:35.9]} 27... Rfd8 {[%clk
0:00:03]} 28. Rdf3 {[%clk 0:02:35.9]} 28... Qe5 {[%clk 0:00:03.2]} 29. Qd2
{[%clk 0:02:25.7]} 29... Kh7 {[%clk 0:00:01.9]} 30. Qd3+ {[%clk 0:02:24.2]}
30... Kh8 {[%clk 0:00:02.4]} 31. Qd2 {[%clk 0:02:06.9]} 31... Kh7 {[%clk
0:00:02.6]} 32. Qc2+ {[%clk 0:02:07.5]} 32... Kh8 {[%clk 0:00:03]} 33. Rf5
{[%clk 0:02:08.2]} 33... Qe1+ {[%clk 0:00:03.2]} 34. Kh2 {[%clk 0:02:08.7]}
34... Qa1 {[%clk 0:00:03.3]} 35. Qd2 {[%clk 0:02:03.5]} 35... Kh7 {[%clk
0:00:03.3]} 36. Qf4 {[%clk 0:02:03.6]} 36... Qxa2 {[%clk 0:00:02.3]} 37. Rxf7+
{[%clk 0:02:03.4]} 1-0

[Event "Early-Titled-Tuesday-Blitz-April-23-2024"]
[Site "Chess.com"]
[Date "2024.04.23"]
[Round "6"]
[White "Carow-Kann"]
[Black "ReinisUz"]
[Result "1-0"]
[WhiteElo "2674"]
[BlackElo "2468"]
[TimeControl "180+1"]
[EndTime "9:06:41 PDT"]
[Termination "Carow-Kann won by resignation"]

1. d4 {[%clk 0:02:55]} 1... d5 {[%clk 0:02:59.5]} 2. Bf4 {[%clk 0:02:54.1]} 2...
Nf6 {[%clk 0:02:59.2]} 3. e3 {[%clk 0:02:53.7]} 3... c6 {[%clk 0:02:59.6]} 4. c4
{[%clk 0:02:51]} 4... e6 {[%clk 0:02:56.8]} 5. Nc3 {[%clk 0:02:49.3]} 5... Be7
{[%clk 0:02:57]} 6. Nf3 {[%clk 0:02:48.4]} 6... Nbd7 {[%clk 0:02:57.4]} 7. Qc2
{[%clk 0:02:45.5]} 7... O-O {[%clk 0:02:57.6]} 8. Bd3 {[%clk 0:02:32.9]} 8...
dxc4 {[%clk 0:02:57.4]} 9. Bxc4 {[%clk 0:02:33.8]} 9... b5 {[%clk 0:02:57.7]}
10. Bd3 {[%clk 0:02:33.9]} 10... Bb7 {[%clk 0:02:58.4]} 11. O-O {[%clk
0:02:27.9]} 11... a6 {[%clk 0:02:48.7]} 12. e4 {[%clk 0:01:54.4]} 12... h6
{[%clk 0:02:45.7]} 13. e5 {[%clk 0:01:51.5]} 13... Nd5 {[%clk 0:02:44.2]} 14.
Nxd5 {[%clk 0:01:49.1]} 14... cxd5 {[%clk 0:02:45.1]} 15. Qe2 {[%clk 0:01:36.5]}
15... Rc8 {[%clk 0:02:41.5]} 16. Rad1 {[%clk 0:01:34]} 16... Nb6 {[%clk
0:02:40.8]} 17. Bb1 {[%clk 0:01:27.7]} 17... Bg5 {[%clk 0:01:38.7]} 18. Nxg5
{[%clk 0:01:08.5]} 18... hxg5 {[%clk 0:01:39.6]} 19. Bc1 {[%clk 0:01:08.5]}
19... g6 {[%clk 0:01:28.2]} 20. Qg4 {[%clk 0:01:05.8]} 20... Nd7 {[%clk
0:01:19]} 21. Bxg5 {[%clk 0:01:04.4]} 21... Qb6 {[%clk 0:01:19.6]} 22. Bf6
{[%clk 0:00:50.7]} 22... Nxf6 {[%clk 0:01:08.5]} 23. exf6 {[%clk 0:00:51.6]}
23... Qd8 {[%clk 0:01:06.1]} 24. Qg5 {[%clk 0:00:44.2]} 24... Re8 {[%clk
0:00:56]} 25. Bxg6 {[%clk 0:00:41.8]} 1-0

[Event "Early-Titled-Tuesday-Blitz-April-23-2024"]
[Site "Chess.com"]
[Date "2024.04.23"]
[Round "6"]
[White "rezamahdavi2008"]
[Black "HajiyevKanan"]
[Result "1-0"]
[WhiteElo "2903"]
[BlackElo "2617"]
[TimeControl "180+1"]
[EndTime "9:06:49 PDT"]
[Termination "rezamahdavi2008 won by resignation"]

1. Nf3 {[%clk 0:03:00.9]} 1... d5 {[%clk 0:02:58.7]} 2. c4 {[%clk 0:02:56.7]}
2... c6 {[%clk 0:02:59.1]} 3. e3 {[%clk 0:02:52.7]} 3... Nf6 {[%clk 0:02:59.2]}
4. Nc3 {[%clk 0:02:52.4]} 4... g6 {[%clk 0:02:59.8]} 5. d4 {[%clk 0:02:51.6]}
5... Bg7 {[%clk 0:02:59.8]} 6. h3 {[%clk 0:02:51.5]} 6... O-O {[%clk 0:02:59.9]}
7. Bd3 {[%clk 0:02:52.1]} 7... Nbd7 {[%clk 0:02:57]} 8. cxd5 {[%clk 0:02:48.9]}
8... cxd5 {[%clk 0:02:56.1]} 9. O-O {[%clk 0:02:48.3]} 9... b6 {[%clk
0:02:54.3]} 10. b4 {[%clk 0:02:47.1]} 10... Bb7 {[%clk 0:02:49.8]} 11. a4 {[%clk
0:02:40.7]} 11... a5 {[%clk 0:02:42.3]} 12. bxa5 {[%clk 0:02:36.5]} 12... bxa5
{[%clk 0:02:35.8]} 13. Ba3 {[%clk 0:02:36.3]} 13... Re8 {[%clk 0:02:24.7]} 14.
Rb1 {[%clk 0:02:33.4]} 14... Ba6 {[%clk 0:02:20.7]} 15. Bxa6 {[%clk 0:02:32.9]}
15... Rxa6 {[%clk 0:02:21.6]} 16. Qd3 {[%clk 0:02:33.6]} 16... Rb6 {[%clk
0:02:12.5]} 17. Rb5 {[%clk 0:02:32.4]} 17... Rxb5 {[%clk 0:02:10.1]} 18. Qxb5
{[%clk 0:02:33.3]} 18... e6 {[%clk 0:02:07.4]} 19. Rb1 {[%clk 0:02:22.9]} 19...
Qc7 {[%clk 0:02:03.3]} 20. Qd3 {[%clk 0:02:22.4]} 20... Rc8 {[%clk 0:01:53.4]}
21. Rc1 {[%clk 0:02:13.7]} 21... Qc4 {[%clk 0:01:42.1]} 22. Nxd5 {[%clk
0:01:57.8]} 22... Qxd3 {[%clk 0:01:32.5]} 23. Rxc8+ {[%clk 0:01:58.7]} 23... Bf8
{[%clk 0:00:53.7]} 24. Nxf6+ {[%clk 0:01:45.3]} 24... Kg7 {[%clk 0:00:50.8]} 25.
Ne8+ {[%clk 0:01:43.8]} 25... Kh6 {[%clk 0:00:39.9]} 26. Bxf8+ {[%clk
0:01:38.4]} 26... Nxf8 {[%clk 0:00:40.2]} 27. Ne5 {[%clk 0:01:39.1]} 27... Qb1+
{[%clk 0:00:29.7]} 28. Kh2 {[%clk 0:01:39]} 28... Qf5 {[%clk 0:00:14.8]} 29.
Ng4+ {[%clk 0:01:32.2]} 29... Kh5 {[%clk 0:00:10.8]} 30. Ng7+ {[%clk 0:01:31.6]}
1-0

[Event "Early-Titled-Tuesday-Blitz-April-23-2024"]
[Site "Chess.com"]
[Date "2024.04.23"]
[Round "6"]
[White "maurovargas01"]
[Black "Boxerandchessplayer"]
[Result "0-1"]
[WhiteElo "1886"]
[BlackElo "2217"]
[TimeControl "180+1"]
[EndTime "9:06:49 PDT"]
[Termination "Boxerandchessplayer won on time"]

1. e4 {[%clk 0:01:40.5]} 1... e6 {[%clk 0:03:00.9]} 2. Nc3 {[%clk 0:01:40.3]}
2... d5 {[%clk 0:02:49.8]} 3. f4 {[%clk 0:01:41.2]} 3... dxe4 {[%clk 0:02:42.1]}
4. Nxe4 {[%clk 0:01:41.8]} 4... Nd7 {[%clk 0:02:42.7]} 5. Nf3 {[%clk 0:01:37.8]}
5... Ngf6 {[%clk 0:02:43.2]} 6. Nc3 {[%clk 0:01:34.8]} 6... Be7 {[%clk 0:02:43]}
7. d3 {[%clk 0:01:34.6]} 7... O-O {[%clk 0:02:43.4]} 8. g3 {[%clk 0:01:34.3]}
8... b6 {[%clk 0:02:43.9]} 9. Bg2 {[%clk 0:01:34.2]} 9... Bb7 {[%clk 0:02:44.5]}
10. O-O {[%clk 0:01:34.4]} 10... c5 {[%clk 0:02:42.6]} 11. Qe1 {[%clk
0:01:33.6]} 11... Rc8 {[%clk 0:02:42.1]} 12. Bd2 {[%clk 0:01:33.1]} 12... Qc7
{[%clk 0:02:42.1]} 13. h3 {[%clk 0:01:22.6]} 13... h5 {[%clk 0:02:33.1]} 14. Ng5
{[%clk 0:01:12]} 14... Bxg2 {[%clk 0:02:32.1]} 15. Kxg2 {[%clk 0:01:12]} 15...
Qc6+ {[%clk 0:02:31]} 16. Kh2 {[%clk 0:01:11.9]} 16... Nd5 {[%clk 0:02:20.1]}
17. Nce4 {[%clk 0:01:06.5]} 17... N7f6 {[%clk 0:02:10.8]} 18. Qe2 {[%clk
0:00:46.1]} 18... Qd7 {[%clk 0:02:05.9]} 19. Rae1 {[%clk 0:00:42.5]} 19... Rfd8
{[%clk 0:01:58.4]} 20. a3 {[%clk 0:00:40.4]} 20... g6 {[%clk 0:01:49.4]} 21. Rd1
{[%clk 0:00:07.1]} 21... Qa4 {[%clk 0:01:41]} 22. Be1 {[%clk 0:00:02]} 22... c4
{[%clk 0:01:30.7]} 23. Nc3 {[%clk 0:00:01.3]} 23... Nxc3 {[%clk 0:01:28.5]} 0-1